lending/lending_fUSD_20241124
["ID","MTS","AMOUNT","RATE_DAILY","PERIOD"]
[343180907,1732417845746,-1227.82355665,0.00043798,5]
[343180913,1732417846078,-500.0,0.00043,3]
[343180914,1732417846088,-196.43062818,0.00043798,5]
[343180915,1732418272282,250.0,0.00031,2]
[343180918,1732418826456,800.0,0.00026986,120]
[343180919,1732418841151,1124.74623322,0.0001305,2]
[343180920,1732418867675,8179.0,0.00035,2]
[343180921,1732418874314,3690.13574543,0.00013,2]
[343180922,1732418890064,2441.85491926,0.00032,30]
[343180970,1732419038065,-714.57,0.00041047,2]
[343180971,1732419038075,-159.06,0.00041096,2]
[343180972,1732419038085,-155.14,0.00041096,2]
[343180973,1732419038096,-206.0,0.0004249,2]
[343180974,1732419038106,-250.0,0.00042628,120]
[343180975,1732419038116,-229.31103876,0.00042725,2]
[343180976,1732419038128,-6199.12427105,0.00042725,2]
[343180977,1732419038142,-7454.01274803,0.00042725,2]
[343180978,1732419038254,-1519.000001,0.00042725,2]
[343180982,1732419039863,-500.0,0.0004249,2]
[343180983,1732419039872,-29.50086024,0.00042725,2]
[343180984,1732419040056,-8469.05108092,0.00042725,2]
[343180985,1732419040066,-250.0,0.00042773,2]
[343180986,1732419040076,-1000.5,0.000428,90]
[343180987,1732419040086,-204.07,0.00042903,2]
[343180988,1732419040095,-2005.28,0.00043,2]
[343180989,1732419040104,-5000.0,0.00043,60]
[343180990,1732419040114,-5000.0,0.00043,60]
[343180991,1732419040123,-169.52,0.00043056,120]
[343180992,1732419040132,-250.0,0.00043073,2]
[343180993,1732419040142,-180.394,0.00043179,66]
[343180994,1732419040155,-1000.0,0.00043179,2]
[343180995,1732419040164,-714.57,0.00043311,2]
[343180996,1732419040173,-1900.0,0.000437,15]
[343180997,1732419040183,-1000.0,0.000437,7]
[343180998,1732419040192,-206.0,0.0004372,2]
[343180999,1732419040202,-157.112412,0.00043793,120]
[343181000,1732419040212,-171.112412,0.00043794,119]
[343181001,1732419040221,-171.112412,0.00043795,120]
[343181002,1732419040231,-160.112412,0.00043796,119]
[343181003,1732419040240,-171.112412,0.00043797,120]
[343181004,1732419040249,-10255.28640751,0.00043798,5]
[343181005,1732419040262,-13545.05534619,0.00043798,15]
[343181006,1732419040271,-3551.79852588,0.00043798,15]
[343181007,1732419040280,-326.80431057,0.00043798,2]
[343181009,1732419040289,-152.181585,0.00043798,14]
[343181010,1732419040299,-2832.303659,0.00043798,14]
[343181011,1732419040308,-151.0,0.00043798,14]
[343181012,1732419040318,-2832.303659,0.00043798,14]
[343181013,1732419040328,-152.736902,0.00043798,14]
[343181014,1732419040337,-151.0,0.00043798,14]
[343181015,1732419040347,-151.0,0.00043798,14]
[343181016,1732419040356,-3654.532607,0.00043798,14]
[343181017,1732419040366,-211.0,0.000438,2]
[343181018,1732419040375,-2232.99999901,0.000438,4]
[343181019,1732419040384,-35268.8569,0.000438,60]
[343181020,1732419040394,-1097.66622585,0.000438,2]
[343181021,1732419040403,-1000.0,0.000438,120]
[343181022,1732419040413,-1000.0,0.000438,90]
[343181023,1732419040422,-154.416278,0.000438,14]
[343181024,1732419040432,-258.636776,0.000438,14]
[343181025,1732419040441,-370.140913,0.000438,14]
[343181026,1732419040450,-370.140913,0.000438,14]
[343181027,1732419040460,-151.0,0.000438,14]
[343181028,1732419040469,-151.0,0.000438,14]
[343181029,1732419040478,-151.0,0.000438,14]
[343181030,1732419040487,-151.0,0.000438,14]
[343181031,1732419040497,-166.244049,0.000438,14]
[343181032,1732419040507,-3800.0,0.000438,15]
[343181033,1732419040518,-3046.117484,0.000438,14]
[343181034,1732419040528,-3046.117484,0.000438,14]
[343181035,1732419040537,-3046.117484,0.000438,14]
[343181036,1732419040546,-3046.117484,0.000438,14]
[343181037,1732419040556,-1000.0,0.000438,7]
[343181038,1732419040565,-151.0,0.000438,14]
[343181039,1732419040575,-156.463636,0.000438,14]
[343181040,1732419040584,-151.0,0.000438,14]
[343181041,1732419040593,-151.0,0.000438,14]
[343181042,1732419040603,-151.0,0.000438,14]
[343181043,1732419040612,-151.0,0.000438,14]
[343181044,1732419040621,-10000.0,0.000438,14]
[343181045,1732419040631,-10000.0,0.000438,14]
[343181046,1732419040642,-6499.14388531,0.000438,14]
[343181047,1732419040653,-3500.85611469,0.000438,14]
[343181048,1732419040663,-10000.0,0.000438,14]
[343181049,1732419040672,-10000.0,0.000438,14]
[343181050,1732419040682,-10000.0,0.000438,14]
[343181051,1732419040691,-10000.0,0.000438,14]
[343181052,1732419040700,-10000.0,0.000438,14]
[343181053,1732419040709,-10000.0,0.000438,14]
[343181054,1732419040719,-10000.0,0.000438,14]
[343181055,1732419040729,-247.454643,0.000438,14]
[343181056,1732419040739,-247.454643,0.000438,14]
[343181057,1732419040749,-247.454643,0.000438,14]
[343181058,1732419040758,-247.454643,0.000438,14]
[343181059,1732419040770,-161.11684,0.000438,14]
[343181060,1732419040779,-161.11684,0.000438,14]
[343181061,1732419040788,-161.11684,0.000438,14]
[343181062,1732419040798,-161.11684,0.000438,14]
[343181063,1732419040808,-2832.303659,0.000438,14]
[343181064,1732419040828,-2832.303659,0.000438,14]
[343181065,1732419040838,-2832.303659,0.000438,14]
[343181066,1732419040847,-2832.303659,0.000438,14]
[343181067,1732419040857,-2832.303659,0.000438,14]
[343181068,1732419040867,-2832.303659,0.000438,14]
[343181069,1732419040876,-2832.303659,0.000438,14]
[343181070,1732419040886,-151.0,0.000438,14]
[343181071,1732419040895,-2832.303659,0.000438,14]
[343181072,1732419040905,-151.0,0.000438,14]
[343181073,1732419040915,-151.0,0.000438,14]
[343181074,1732419040925,-2832.303659,0.000438,14]
[343181075,1732419040934,-2832.303659,0.000438,14]
[343181076,1732419040944,-151.0,0.000438,14]
[343181077,1732419040954,-2832.303659,0.000438,14]
[343181078,1732419040964,-151.0,0.000438,14]
[343181079,1732419040974,-2832.303659,0.000438,14]
[343181080,1732419040984,-151.0,0.000438,14]
[343181081,1732419040994,-2832.303659,0.000438,14]
[343181082,1732419041005,-151.0,0.000438,14]
[343181083,1732419041019,-2832.303659,0.000438,14]
[343181084,1732419041029,-281.891662,0.000438,14]
[343181085,1732419041038,-2832.303659,0.000438,14]
[343181086,1732419041049,-2832.303659,0.000438,14]
[343181087,1732419041059,-151.0,0.000438,14]
[343181088,1732419041068,-151.0,0.000438,14]
[343181089,1732419041079,-151.0,0.000438,14]
[343181090,1732419041088,-151.0,0.000438,14]
[343181091,1732419041097,-151.0,0.000438,14]
[343181092,1732419041106,-151.0,0.000438,14]
[343181093,1732419041117,-151.0,0.000438,14]
[343181094,1732419041127,-151.0,0.000438,14]
[343181095,1732419041137,-151.0,0.000438,14]
[343181096,1732419041148,-251.400299,0.000438,14]
[343181097,1732419041160,-3654.532607,0.000438,14]
[343181098,1732419041170,-2237.03789131,0.000438,14]
[343181099,1732419041206,-1417.49471569,0.000438,14]
[343181100,1732419041216,-3654.532607,0.000438,14]
[343181101,1732419041226,-3654.532607,0.000438,14]
[343181102,1732419041240,-159.3923083,0.00043873,10]
[343181103,1732419041249,-500.0,0.00043873,2]
[343181104,1732419041259,-171.112412,0.0004389,119]
[343181105,1732419041274,-171.112412,0.00043891,120]
[343181106,1732419041283,-161.112412,0.00043892,119]
[343181107,1732419041293,-2663.49885744,0.00043897,120]
[343181108,1732419041302,-151.0,0.00043898,14]
[343181109,1732419041312,-151.0,0.00043898,14]
[343181110,1732419041322,-151.0,0.00043898,14]
[343181111,1732419041331,-151.0,0.00043898,14]
[343181112,1732419041341,-151.0,0.00043898,14]
[343181113,1732419041351,-370.140913,0.00043898,14]
[343181114,1732419041360,-370.140913,0.00043898,14]
[343181115,1732419041369,-370.140913,0.00043898,14]
[343181116,1732419041379,-6.2713852,0.00043898,14]
[343181117,1732419041392,-363.8695278,0.00043898,14]
[343181118,1732419041402,-370.140913,0.00043898,14]
[343181119,1732419041412,-370.140913,0.00043898,14]
[343181120,1732419041422,-370.140913,0.00043898,14]
[343181121,1732419041432,-370.140913,0.00043898,14]
[343181122,1732419041442,-155.889505,0.00043898,14]
[343181123,1732419041453,-158.286148,0.00043898,14]
[343181124,1732419041463,-65.90140377,0.00043898,14]
[343181131,1732419043144,-2212.98984905,0.00043798,14]
[343181132,1732419043157,-515.87912843,0.00043798,14]
[343181133,1732419043318,-925.66362952,0.00043798,14]
[343181134,1732419043327,-3654.532607,0.000438,14]
[343181135,1732419043336,-385.32872594,0.000438,14]
[343181136,1732419043348,-3269.20388106,0.000438,14]
[343181137,1732419043358,-3654.532607,0.000438,14]
[343181138,1732419043368,-3654.532607,0.000438,14]
[343181139,1732419043378,-3654.532607,0.000438,14]
[343181140,1732419043388,-3654.532607,0.000438,14]
[343181141,1732419043398,-2980.21608023,0.00043898,14]
[343181142,1732419043408,-2028.70746504,0.00043898,14]
[343181143,1732419043420,-1017.41001896,0.00043898,14]
[343181144,1732419043429,-3046.117484,0.00043898,14]
[343181145,1732419043438,-3046.117484,0.00043898,14]
[343181146,1732419043447,-2163.31089512,0.00043898,14]
[343181147,1732419043460,-882.80658888,0.00043898,14]
[343181148,1732419043470,-3046.117484,0.00043898,14]
[343181149,1732419043479,-2527.82592837,0.00043898,14]
[343181150,1732419043490,-500.0,0.00043898,14]
[343181156,1732419045747,-577.79202922,0.000438,14]
[343181157,1732419045926,-608.6567174,0.000438,14]
[343181158,1732419046128,-2468.08386038,0.000438,14]
[343181159,1732419046140,-3654.532607,0.000438,14]
[343181160,1732419046153,-3654.532607,0.000438,14]
[343181161,1732419046164,-3654.532607,0.000438,14]
[343181162,1732419046175,-3654.532607,0.000438,14]
[343181163,1732419046184,-18.29155563,0.00043898,14]
[343181164,1732419046195,-3046.117484,0.00043898,14]
[343181165,1732419046205,-2049.37667399,0.00043898,14]
[343181166,1732419046242,-151.0,0.00043798,14]
[343181167,1732419046252,-3654.532607,0.000438,14]
[343181168,1732419046263,-996.74081001,0.00043898,14]
[343181169,1732419046276,-3046.117484,0.00043898,14]
[343181170,1732419046286,-3046.117484,0.00043898,14]
[343181171,1732419046296,-3046.117484,0.00043898,14]
[343181172,1732419046307,-3046.117484,0.00043898,14]
[343181173,1732419046316,-3046.117484,0.00043898,14]
[343181174,1732419046328,-151.0,0.00043898,14]
[343181175,1732419046338,-151.0,0.00043898,14]
[343181176,1732419046349,-151.0,0.00043898,14]
[343181177,1732419046359,-151.0,0.00043898,14]
[343181178,1732419046370,-151.0,0.00043898,14]
[343181179,1732419046380,-151.0,0.00043898,14]
[343181180,1732419046390,-151.0,0.00043898,14]
[343181181,1732419046399,-151.0,0.00043898,14]
[343181182,1732419046410,-151.0,0.00043898,14]
[343181183,1732419046420,-151.0,0.00043898,14]
[343181184,1732419046430,-151.0,0.00043898,14]
[343181185,1732419046440,-175.53021,0.00043898,14]
[343181186,1732419046450,-7730.609153,0.00043898,14]
[343181193,1732420074813,250.0,0.00031,2]
[343181217,1732420232165,-542.57132052,0.00040808,2]
[343181237,1732420232476,-1342.97004748,0.00040808,2]
[343181239,1732420232490,-662.22,0.00041014,2]
[343181240,1732420232504,-154.29,0.00041096,2]
[343181242,1732420232517,-152.0,0.00042251,3]
[343181243,1732420232527,-1000.0,0.00042478,2]
[343181244,1732420232538,-163.25,0.00042542,2]
[343181245,1732420232548,-250.0,0.00042542,2]
[343181246,1732420232557,-221.79736245,0.00042608,2]
[343181247,1732420232731,-28.20263755,0.00042608,2]
[343181248,1732420232741,-165.8,0.00042608,120]
[343181249,1732420232754,-550.0,0.00042727,5]
[343181251,1732420232765,-10091.0902,0.00042728,2]
[343181253,1732420232775,-161.04,0.00042758,120]
[343181255,1732420232785,-250.0,0.00042784,120]
[343181257,1732420232794,-23900.0,0.00042829,2]
[343181259,1732420232804,-2000.00000099,0.00043139,4]
[343181261,1732420232813,-764.99,0.000432,30]
[343181263,1732420232823,-1419.98,0.000432,30]
[343181264,1732420232833,-180.394,0.000432,66]
[343181265,1732420232844,-662.22,0.00043278,2]
[343181266,1732420232853,-420.0,0.000433,30]
[343181267,1732420232863,-764.99,0.000433,30]
[343181268,1732420232872,-764.99,0.000433,30]
[343181269,1732420232881,-5547.31272897,0.00043355,3]
[343181284,1732420238389,-20357.013577,0.00043355,3]
[343181285,1732420238401,-11892.72271579,0.00043355,3]
[343181286,1732420238413,-2202.95097824,0.00043355,3]
[343181287,1732420238423,-9490.0,0.00043542,2]
[343181288,1732420238433,-3977.04065894,0.00043598,15]
[343181289,1732420238442,-764.99,0.000436,30]
[343181290,1732420238452,-433.65,0.000436,30]
[343181291,1732420238462,-500.0,0.00043673,2]
[343181292,1732420238472,-10115.35467348,0.00043698,2]
[343181297,1732420240471,-317.32696636,0.00043697,31]
[343181298,1732420240481,-182.67303364,0.00043698,2]
[343181304,1732420244860,-7557.1818007,0.00043698,2]
[343181305,1732420244875,-330.92021651,0.00043698,2]
[343181306,1732420244888,-9580.17317726,0.00043698,2]
[343181309,1732420245995,-3515.592829,0.00043698,2]
[343181311,1732420246256,-13651.38229391,0.00043698,2]
[343181313,1732420310742,1835.8918882,0.00035,5]
[343181315,1732420341139,1935.57,0.00035,2]
[343181316,1732420569664,2007.0,0.000352,5]
[343181317,1732420572640,172.98,0.000325,2]
[343181318,1732420585143,494.0,0.000268,2]
[343181319,1732420585810,445.0,0.000268,2]
[343181320,1732420613564,5217.29712236,0.00035,2]
[343181321,1732420718610,150.0,0.000352,5]
[343181322,1732420864867,800.0,0.00026986,120]
[343181330,1732421431986,-154.14,0.00038,7]
[343181331,1732421431995,-515.24829337,0.00038202,2]
[343181332,1732421432007,-998.03864729,0.00038202,2]
[343181333,1732421432018,-976.55251709,0.00038202,2]
[343181334,1732421432040,-4197.74151695,0.00038202,2]
[343181335,1732421432050,-258.40125805,0.00039998,2]
[343181336,1732421432060,-172.98,0.00040098,2]
[343181337,1732421432070,-258.40125803,0.00040185,2]
[343181338,1732421432079,-258.40125803,0.00040372,2]
[343181339,1732421432088,-595.99,0.00040472,2]
[343181340,1732421432097,-254.936424,0.00040685,2]
[343181341,1732421432107,-156.13,0.00041096,2]
[343181342,1732421432116,-159.06,0.00041096,2]
[343181343,1732421432126,-519.63362693,0.00042,2]
[343181344,1732421432135,-2341.28,0.00042088,2]
[343181345,1732421432145,-150.31,0.0004211,2]
[343181346,1732421432155,-250.0,0.00042236,120]
[343181347,1732421432165,-1463.5167,0.00042302,2]
[343181348,1732421432174,-550.0,0.0004231,5]
[343181349,1732421432184,-3340.58789889,0.00042311,2]
[343181350,1732421432196,-3211.6503843,0.00042311,2]
[343181351,1732421432221,-2397.167476,0.00042311,2]
[343181352,1732421432233,-1333.487522,0.00042311,2]
[343181353,1732421432358,-13617.10671881,0.00042311,2]
[343181356,1732421432369,-250.0,0.00042402,2]
[343181358,1732421432379,-1000.0,0.00042402,2]
[343181359,1732421432389,-172.95,0.00042546,2]
[343181360,1732421432400,-163.25,0.00042682,2]
[343181361,1732421432410,-595.99,0.00042736,2]
[343181363,1732421432420,-764.99,0.00042741,30]
[343181365,1732421432430,-433.65,0.00042741,30]
[343181366,1732421432440,-152.98,0.00042765,120]
[343181367,1732421432449,-382.176,0.00042771,65]
[343181368,1732421432458,-733.54828848,0.000428,120]
[343181369,1732421432468,-408.70779717,0.00043289,2]
[343181370,1732421432477,-186.155,0.00043289,2]
[343181371,1732421432486,-186.155,0.00043289,2]
[343181372,1732421432496,-186.155,0.00043289,2]
[343181373,1732421432504,-186.155,0.00043289,2]
[343181374,1732421432514,-594.073,0.000435,120]
[343181375,1732421432523,-1700.0,0.000435,15]
[343181376,1732421432533,-2580.9851,0.00043597,2]
[343181377,1732421432542,-1213.1492,0.00043597,2]
[343181378,1732421432552,-947.7932,0.00043597,2]
[343181379,1732421432562,-690.4819,0.00043597,2]
[343181380,1732421432571,-3845.09180203,0.00043597,15]
[343181381,1732421432581,-326.1696402,0.00043597,2]
[343181382,1732421432591,-164.34938564,0.00043597,28]
[343181383,1732421432600,-1078.168,0.00043598,2]
[343181384,1732421432610,-3400.0,0.000436,15]
[343181385,1732421432619,-175.27,0.00043644,2]
[343181386,1732421432629,-502.47137396,0.00043673,7]
[343181387,1732421432639,-10000.0,0.0004369,2]
[343181388,1732421432652,-219.67,0.00043692,2]
[343181389,1732421432665,-56420.74684806,0.00043695,3]
[343181390,1732421432679,-1000.0,0.00043696,2]
[343181391,1732421432690,-212.82812795,0.00043696,31]
[343181392,1732421432699,-500.0,0.00043696,31]
[343181393,1732421432710,-500.0,0.00043696,2]
[343181394,1732421432723,-500.0,0.00043696,2]
[343181395,1732421432733,-599.32958409,0.00043696,2]
[343181396,1732421432742,-627.12159955,0.00043696,2]
[343181397,1732421432752,-500.0,0.00043696,2]
[343181398,1732421432762,-500.0,0.00043696,2]
[343181399,1732421432772,-329.72400068,0.00043696,2]
[343181400,1732421432782,-500.0,0.00043696,2]
[343181401,1732421432793,-243.0836469,0.00043696,2]
[343181402,1732421432806,-500.0,0.00043696,2]
[343181403,1732421432816,-500.0,0.00043696,2]
[343181404,1732421432825,-500.0,0.00043696,2]
[343181405,1732421432836,-501.43790871,0.00043696,2]
[343181406,1732421432846,-572.79822519,0.00043696,2]
[343181407,1732421432855,-558.46936014,0.00043696,2]
[343181408,1732421432865,-4701.61,0.00043696,2]
[343181409,1732421432874,-4701.61,0.00043696,2]
[343181410,1732421432884,-500.0,0.00043696,2]
[343181411,1732421432897,-500.0,0.00043696,2]
[343181412,1732421432906,-500.0,0.00043696,2]
[343181413,1732421432915,-500.0,0.00043696,2]
[343181414,1732421432925,-500.0,0.00043696,2]
[343181415,1732421432936,-500.0,0.00043696,2]
[343181416,1732421432946,-500.0,0.00043696,2]
[343181417,1732421432956,-334.73262521,0.00043696,2]
[343181418,1732421432965,-500.0,0.00043696,2]
[343181419,1732421432975,-500.0,0.00043696,2]
[343181420,1732421432986,-500.0,0.00043696,2]
[343181421,1732421432995,-500.0,0.00043696,2]
[343181422,1732421433006,-521.67813702,0.00043696,2]
[343181423,1732421433016,-1783.96,0.00043696,2]
[343181424,1732421433026,-1783.96,0.00043696,2]
[343181425,1732421433036,-161.86694443,0.00043696,2]
[343181426,1732421433047,-539.46256378,0.00043696,2]
[343181427,1732421433057,-500.0,0.00043696,2]
[343181428,1732421433067,-500.0,0.00043696,2]
[343181429,1732421433078,-7163.9,0.00043696,2]
[343181430,1732421433087,-7163.9,0.00043696,2]
[343181431,1732421433097,-601.71279641,0.00043696,2]
[343181432,1732421433107,-500.0,0.00043696,2]
[343181433,1732421433118,-500.0,0.00043696,2]
[343181434,1732421433127,-500.0,0.00043696,2]
[343181435,1732421433137,-500.0,0.00043696,2]
[343181436,1732421433150,-500.0,0.00043696,2]
[343181437,1732421433161,-500.0,0.00043696,2]
[343181438,1732421433171,-618.71010309,0.00043696,2]
[343181439,1732421433181,-500.0,0.00043696,2]
[343181440,1732421433191,-500.0,0.00043696,2]
[343181441,1732421433201,-500.0,0.00043696,2]
[343181442,1732421433211,-500.0,0.00043696,2]
[343181443,1732421433221,-500.0,0.00043696,2]
[343181444,1732421433232,-500.0,0.00043696,2]
[343181445,1732421433242,-500.0,0.00043696,2]
[343181446,1732421433252,-500.0,0.00043696,2]
[343181447,1732421433261,-500.0,0.00043696,2]
[343181448,1732421433271,-163.94490161,0.00043696,2]
[343181449,1732421433281,-500.0,0.00043696,2]
[343181450,1732421433291,-500.0,0.00043696,2]
[343181451,1732421433301,-500.0,0.00043697,2]
[343181452,1732421433311,-500.0,0.00043697,2]
[343181453,1732421433321,-500.0,0.00043697,2]
[343181454,1732421433330,-270.6443612,0.00043697,2]
[343181455,1732421433340,-500.0,0.00043697,2]
[343181456,1732421433349,-500.0,0.00043697,2]
[343181457,1732421433359,-530.50703234,0.00043697,2]
[343181458,1732421433369,-500.0,0.00043697,2]
[343181459,1732421433378,-506.42542308,0.00043697,2]
[343181460,1732421433388,-500.0,0.00043697,2]
[343181461,1732421433398,-500.0,0.00043697,2]
[343181462,1732421433408,-500.0,0.00043697,2]
[343181463,1732421433418,-500.0,0.00043697,2]
[343181464,1732421433428,-500.0,0.00043697,2]
[343181465,1732421433438,-518.06579565,0.00043697,2]
[343181466,1732421433448,-505.06532453,0.00043697,2]
[343181467,1732421433458,-500.0,0.00043697,2]
[343181468,1732421433468,-500.0,0.00043697,2]
[343181469,1732421433478,-500.0,0.00043697,2]
[343181470,1732421433487,-500.0,0.00043697,2]
[343181471,1732421433497,-503.76354667,0.00043697,2]
[343181472,1732421433507,-500.0,0.00043697,2]
[343181473,1732421433516,-500.0,0.00043697,2]
[343181474,1732421433526,-500.0,0.00043697,2]
[343181475,1732421433536,-500.0,0.00043697,2]
[343181476,1732421433546,-500.0,0.00043697,2]
[343181477,1732421433556,-500.0,0.00043697,2]
[343181478,1732421433566,-500.0,0.00043697,2]
[343181479,1732421433576,-500.0,0.00043697,2]
[343181480,1732421433586,-502.84078379,0.00043697,2]
[343181481,1732421433596,-500.0,0.00043697,2]
[343181482,1732421433606,-500.0,0.00043697,2]
[343181483,1732421433615,-503.43508699,0.00043697,2]
[343181484,1732421433625,-500.0,0.00043697,2]
[343181485,1732421433635,-506.09861411,0.00043697,2]
[343181486,1732421433646,-500.0,0.00043697,2]
[343181487,1732421433656,-632.0,0.00043697,2]
[343181488,1732421433665,-500.0,0.00043697,2]
[343181489,1732421433677,-507.81988797,0.00043697,2]
[343181490,1732421433688,-500.0,0.00043697,2]
[343181491,1732421433698,-500.0,0.00043697,2]
[343181492,1732421433709,-503.08114285,0.00043697,2]
[343181493,1732421433719,-506.91264455,0.00043697,2]
[343181494,1732421433730,-500.0,0.00043697,2]
[343181495,1732421433741,-500.0,0.00043697,2]
[343181496,1732421433751,-503.54605835,0.00043697,2]
[343181497,1732421433762,-500.0,0.00043697,2]
[343181498,1732421433772,-508.03007597,0.00043697,2]
[343181499,1732421433782,-504.15586489,0.00043697,2]
[343181500,1732421433793,-611.51932495,0.00043697,2]
[343181501,1732421433804,-500.0,0.00043697,2]
[343181502,1732421433814,-536.75982158,0.00043697,2]
[343181503,1732421433824,-500.0,0.00043697,2]
[343181504,1732421433835,-389.50281564,0.00043697,2]
[343181505,1732421433844,-509.22758361,0.00043697,2]
[343181506,1732421433854,-500.0,0.00043697,2]
[343181507,1732421433864,-539.35992176,0.00043697,2]
[343181508,1732421433878,-500.0,0.00043697,2]
[343181509,1732421433889,-500.0,0.00043697,2]
[343181510,1732421433903,-505.69528142,0.00043697,2]
[343181511,1732421433913,-500.0,0.00043697,2]
[343181512,1732421433924,-500.0,0.00043697,2]
[343181513,1732421433935,-504.18491764,0.00043697,2]
[343181514,1732421433945,-163.73759495,0.00043697,2]
[343181515,1732421433955,-500.0,0.00043697,2]
[343181516,1732421433966,-504.05262536,0.00043697,2]
[343181517,1732421433975,-500.0,0.00043697,2]
[343181518,1732421433987,-503.78302721,0.00043697,2]
[343181519,1732421433998,-500.0,0.00043697,2]
[343181520,1732421434008,-500.0,0.00043697,2]
[343181521,1732421434018,-151.0,0.00043697,14]
[343181522,1732421434027,-500.0,0.00043697,2]
[343181523,1732421434036,-503.73892416,0.00043697,2]
[343181524,1732421434045,-503.76622284,0.00043697,2]
[343181525,1732421434055,-520.43943478,0.00043697,2]
[343181526,1732421434065,-500.0,0.00043697,2]
[343181527,1732421434075,-500.0,0.00043697,2]
[343181528,1732421434085,-500.0,0.00043697,2]
[343181529,1732421434095,-503.58912273,0.00043697,2]
[343181530,1732421434106,-500.0,0.00043697,2]
[343181531,1732421434116,-505.7750175,0.00043697,2]
[343181532,1732421434126,-151.0,0.00043697,14]
[343181533,1732421434135,-500.0,0.00043697,2]
[343181534,1732421434148,-553.09363765,0.00043697,2]
[343181535,1732421434159,-500.0,0.00043697,2]
[343181536,1732421434170,-500.0,0.00043697,2]
[343181537,1732421434180,-500.0,0.00043697,2]
[343181538,1732421434190,-500.0,0.00043697,2]
[343181539,1732421434200,-509.90837752,0.00043697,2]
[343181540,1732421434210,-500.0,0.00043697,2]
[343181541,1732421434220,-500.0,0.00043697,2]
[343181542,1732421434229,-525.91872952,0.00043697,2]
[343181543,1732421434240,-500.0,0.00043697,2]
[343181544,1732421434251,-517.66996263,0.00043697,2]
[343181545,1732421434261,-500.0,0.00043697,2]
[343181546,1732421434271,-500.0,0.00043697,2]
[343181547,1732421434282,-500.0,0.00043697,2]
[343181548,1732421434293,-500.0,0.00043697,2]
[343181549,1732421434304,-500.0,0.00043697,2]
[343181550,1732421434314,-500.0,0.00043697,2]
[343181551,1732421434325,-500.0,0.00043697,2]
[343181552,1732421434335,-404.9728283,0.00043697,2]
[343181553,1732421434345,-509.28516553,0.00043697,2]
[343181554,1732421434355,-151.0,0.00043697,3]
[343181555,1732421434365,-500.0,0.00043697,2]
[343181556,1732421434375,-504.7629624,0.00043697,2]
[343181557,1732421434385,-540.92716881,0.00043697,2]
[343181558,1732421434397,-514.94048194,0.00043697,2]
[343181559,1732421434407,-507.04943847,0.00043697,2]
[343181560,1732421434418,-517.73482932,0.00043697,2]
[343181561,1732421434428,-500.0,0.00043697,2]
[343181562,1732421434438,-503.70753286,0.00043697,2]
[343181563,1732421434448,-502.26805294,0.00043697,2]
[343181564,1732421434458,-520.79194048,0.00043697,2]
[343181565,1732421434468,-526.69538511,0.00043697,2]
[343181566,1732421434478,-500.0,0.00043697,2]
[343181567,1732421434489,-500.0,0.00043697,2]
[343181568,1732421434499,-542.60126639,0.00043697,2]
[343181569,1732421434509,-500.0,0.00043697,2]
[343181570,1732421434521,-192.47454837,0.00043697,2]
[343181571,1732421434531,-530.05904265,0.00043697,2]
[343181572,1732421434541,-510.15590353,0.00043697,2]